[Event "Late-Titled-Tuesday-Blitz-June-18-2024"]
[Site "Chess.com"]
[Date "2024.06.18"]
[Round "8"]
[White "marszach123"]
[Black "SocoLoco"]
[Result "0-1"]
[WhiteElo "1930"]
[BlackElo "2171"]
[TimeControl "180+1"]
[EndTime "15:28:56 PDT"]
[Termination "SocoLoco won on time"]

1. e4 {[%clk 0:02:59.3]} 1... c5 {[%clk 0:02:59.3]} 2. Nf3 {[%clk 0:02:59.2]}
2... e6 {[%clk 0:02:59.2]} 3. c3 {[%clk 0:02:58.6]} 3... d5 {[%clk 0:02:58.4]}
4. exd5 {[%clk 0:02:58.6]} 4... Qxd5 {[%clk 0:02:59.3]} 5. d4 {[%clk 0:02:59.3]}
5... cxd4 {[%clk 0:02:59.8]} 6. cxd4 {[%clk 0:03:00.2]} 6... Nf6 {[%clk
0:02:59.3]} 7. Nc3 {[%clk 0:03:00.7]} 7... Qd6 {[%clk 0:02:59.6]} 8. Nb5 {[%clk
0:02:59.7]} 8... Qd8 {[%clk 0:02:59.4]} 9. a4 {[%clk 0:02:58.6]} 9... a6 {[%clk
0:02:59.2]} 10. Nc3 {[%clk 0:02:57.8]} 10... Be7 {[%clk 0:02:58.7]} 11. Bf4
{[%clk 0:02:56.5]} 11... O-O {[%clk 0:02:58.3]} 12. Be5 {[%clk 0:02:53.6]} 12...
Nc6 {[%clk 0:02:58.1]} 13. Be2 {[%clk 0:02:50.4]} 13... Nb4 {[%clk 0:02:57.9]}
14. O-O {[%clk 0:02:45.4]} 14... Nbd5 {[%clk 0:02:57.9]} 15. Qc2 {[%clk
0:02:40]} 15... Bd7 {[%clk 0:02:56.4]} 16. Qb3 {[%clk 0:02:23.8]} 16... Bc6
{[%clk 0:02:50.9]} 17. Rad1 {[%clk 0:02:17.8]} 17... Qa5 {[%clk 0:02:25.6]} 18.
Bd3 {[%clk 0:01:59.9]} 18... Rfd8 {[%clk 0:02:22.5]} 19. Bc2 {[%clk 0:01:37]}
19... Rac8 {[%clk 0:02:10.3]} 20. Nxd5 {[%clk 0:01:31.4]} 20... Bxd5 {[%clk
0:01:53]} 21. Qd3 {[%clk 0:01:30.3]} 21... Be4 {[%clk 0:01:51]} 22. Qd2 {[%clk
0:01:07.5]} 22... Qxd2 {[%clk 0:01:41.1]} 23. Rxd2 {[%clk 0:01:03.5]} 23... Rxc2
{[%clk 0:01:34.4]} 24. Rxc2 {[%clk 0:01:03.1]} 24... Bxc2 {[%clk 0:01:35.3]} 25.
Rc1 {[%clk 0:01:03.5]} 25... Bxa4 {[%clk 0:01:33.3]} 26. Rc7 {[%clk 0:01:01.9]}
26... Kf8 {[%clk 0:01:21.7]} 27. Rxb7 {[%clk 0:00:57.8]} 27... Bc6 {[%clk
0:01:21.1]} 28. Ra7 {[%clk 0:00:53.2]} 28... Bxf3 {[%clk 0:01:19.2]} 29. gxf3
{[%clk 0:00:54.1]} 29... Nd7 {[%clk 0:00:51.8]} 30. Bc7 {[%clk 0:00:30.9]} 30...
Rc8 {[%clk 0:00:50.3]} 31. Ba5 {[%clk 0:00:29.2]} 31... Ke8 {[%clk 0:00:45.2]}
32. Rxa6 {[%clk 0:00:24.1]} 32... Bf6 {[%clk 0:00:44.8]} 33. Bc3 {[%clk
0:00:22.1]} 33... Rb8 {[%clk 0:00:41.1]} 34. Ra7 {[%clk 0:00:19.7]} 34... Nb6
{[%clk 0:00:38.7]} 35. Kg2 {[%clk 0:00:10]} 35... Nd5 {[%clk 0:00:38.8]} 36. Ra3
{[%clk 0:00:04.2]} 36... Rc8 {[%clk 0:00:34.2]} 37. Be1 {[%clk 0:00:01.2]} 37...
Bxd4 {[%clk 0:00:33.2]} 0-1

[Event "Late-Titled-Tuesday-Blitz-June-18-2024"]
[Site "Chess.com"]
[Date "2024.06.18"]
[Round "8"]
[White "GlavkonVVS"]
[Black "Abund"]
[Result "0-1"]
[WhiteElo "2529"]
[BlackElo "2676"]
[TimeControl "180+1"]
[EndTime "15:28:58 PDT"]
[Termination "Abund won by resignation"]

1. c4 {[%clk 0:03:00.9]} 1... e5 {[%clk 0:02:56.4]} 2. Nc3 {[%clk 0:03:00.6]}
2... Bb4 {[%clk 0:02:55.6]} 3. g3 {[%clk 0:03:00.7]} 3... Nf6 {[%clk 0:02:51.2]}
4. Bg2 {[%clk 0:03:00.6]} 4... O-O {[%clk 0:02:51.2]} 5. Nf3 {[%clk 0:03:00.5]}
5... Re8 {[%clk 0:02:48.9]} 6. O-O {[%clk 0:03:00]} 6... c6 {[%clk 0:02:45.6]}
7. d3 {[%clk 0:02:47.9]} 7... h6 {[%clk 0:02:44.6]} 8. e4 {[%clk 0:02:38.2]}
8... d5 {[%clk 0:02:24.1]} 9. exd5 {[%clk 0:02:19.2]} 9... Bxc3 {[%clk
0:02:22.4]} 10. bxc3 {[%clk 0:02:18.6]} 10... cxd5 {[%clk 0:02:23.1]} 11. cxd5
{[%clk 0:02:17.5]} 11... Nxd5 {[%clk 0:02:23.7]} 12. Qb3 {[%clk 0:02:13.4]}
12... Nc6 {[%clk 0:02:18.8]} 13. c4 {[%clk 0:02:13.1]} 13... Ndb4 {[%clk
0:01:53.4]} 14. Rd1 {[%clk 0:02:11]} 14... Bf5 {[%clk 0:01:51.9]} 15. Ne1 {[%clk
0:01:58.7]} 15... a5 {[%clk 0:01:38.7]} 16. a3 {[%clk 0:01:58]} 16... Nd4 {[%clk
0:01:38.7]} 17. Qb2 {[%clk 0:01:58]} 17... Nbc6 {[%clk 0:01:23.7]} 18. Be3
{[%clk 0:01:52.8]} 18... Qd7 {[%clk 0:01:14.4]} 19. Rab1 {[%clk 0:01:50.9]}
19... Rab8 {[%clk 0:01:10.3]} 20. Qb6 {[%clk 0:01:32.9]} 20... Ne2+ {[%clk
0:01:07.5]} 21. Kf1 {[%clk 0:01:25.4]} 21... Nc3 {[%clk 0:01:02.4]} 22. Bxc6
{[%clk 0:01:20.8]} 22... bxc6 {[%clk 0:00:47.1]} 23. Qxb8 {[%clk 0:01:20.2]}
23... Rxb8 {[%clk 0:00:48]} 24. Rxb8+ {[%clk 0:01:19.6]} 24... Kh7 {[%clk
0:00:48.7]} 25. Rd2 {[%clk 0:01:15.6]} 25... Bh3+ {[%clk 0:00:41.7]} 26. Kg1
{[%clk 0:01:14.8]} 26... Qd6 {[%clk 0:00:29.3]} 27. Rb3 {[%clk 0:01:12.2]} 27...
Na4 {[%clk 0:00:26.6]} 28. d4 {[%clk 0:01:09.5]} 28... exd4 {[%clk 0:00:20.1]}
29. Rxd4 {[%clk 0:01:08.4]} 29... Qg6 {[%clk 0:00:19.8]} 30. Rh4 {[%clk
0:01:05.4]} 30... Be6 {[%clk 0:00:17.1]} 31. Nd3 {[%clk 0:00:57]} 31... Qf5
{[%clk 0:00:14.1]} 32. Rd4 {[%clk 0:00:52.8]} 32... Qf3 {[%clk 0:00:14.3]} 33.
Ne5 {[%clk 0:00:47.8]} 33... Qe2 {[%clk 0:00:14.6]} 34. Kg2 {[%clk 0:00:38.8]}
34... Nc5 {[%clk 0:00:11.9]} 35. Rf4 {[%clk 0:00:37.4]} 35... Nxb3 {[%clk
0:00:11]} 36. Nxf7 {[%clk 0:00:34.1]} 36... Bxf7 {[%clk 0:00:11.2]} 37. Rxf7
{[%clk 0:00:34.1]} 37... Qxc4 {[%clk 0:00:11.8]} 38. Rd7 {[%clk 0:00:31.6]}
38... a4 {[%clk 0:00:10.8]} 39. Bf4 {[%clk 0:00:28.9]} 39... Qe4+ {[%clk
0:00:10.4]} 40. f3 {[%clk 0:00:28.6]} 40... Qe2+ {[%clk 0:00:10.4]} 41. Kh3
{[%clk 0:00:28]} 41... Qe6+ {[%clk 0:00:10.4]} 0-1

[Event "Late-Titled-Tuesday-Blitz-June-18-2024"]
[Site "Chess.com"]
[Date "2024.06.18"]
[Round "8"]
[White "dolynachess"]
[Black "Chempiblinka"]
[Result "0-1"]
[WhiteElo "2535"]
[BlackElo "2393"]
[TimeControl "180+1"]
[EndTime "15:29:07 PDT"]
[Termination "Chempiblinka won on time"]

1. d4 {[%clk 0:02:57.4]} 1... Nf6 {[%clk 0:02:59.3]} 2. c4 {[%clk 0:02:56.9]}
2... g6 {[%clk 0:02:59.2]} 3. Nc3 {[%clk 0:02:56.3]} 3... Bg7 {[%clk 0:02:58.9]}
4. e4 {[%clk 0:02:56.2]} 4... d6 {[%clk 0:02:58.5]} 5. Nf3 {[%clk 0:02:56.6]}
5... O-O {[%clk 0:02:58.8]} 6. Be2 {[%clk 0:02:57]} 6... Bg4 {[%clk 0:02:56.5]}
7. Be3 {[%clk 0:02:56]} 7... Nfd7 {[%clk 0:02:56.2]} 8. Rc1 {[%clk 0:02:55.7]}
8... c5 {[%clk 0:02:46.3]} 9. d5 {[%clk 0:02:56]} 9... Na6 {[%clk 0:02:34.8]}
10. Nd2 {[%clk 0:02:47.2]} 10... Bxe2 {[%clk 0:02:33.7]} 11. Qxe2 {[%clk
0:02:48.1]} 11... Nc7 {[%clk 0:02:33.7]} 12. O-O {[%clk 0:02:46.9]} 12... a6
{[%clk 0:02:33.5]} 13. f4 {[%clk 0:02:30.3]} 13... b5 {[%clk 0:02:22.8]} 14. e5
{[%clk 0:02:27.4]} 14... dxe5 {[%clk 0:02:16.8]} 15. f5 {[%clk 0:02:27.2]} 15...
bxc4 {[%clk 0:01:56.3]} 16. Nxc4 {[%clk 0:02:03]} 16... Nb5 {[%clk 0:01:55.7]}
17. g4 {[%clk 0:01:22.5]} 17... Nd4 {[%clk 0:01:52.5]} 18. Qg2 {[%clk
0:01:22.6]} 18... Rb8 {[%clk 0:01:40.6]} 19. b3 {[%clk 0:01:21.9]} 19... Nb6
{[%clk 0:01:33.1]} 20. Nxb6 {[%clk 0:01:16.4]} 20... Qxb6 {[%clk 0:01:27.5]} 21.
Na4 {[%clk 0:01:10.1]} 21... Qb5 {[%clk 0:01:09.9]} 22. Nxc5 {[%clk 0:01:07.1]}
22... Ne2+ {[%clk 0:01:08.4]} 23. Kh1 {[%clk 0:01:03.4]} 23... Nxc1 {[%clk
0:01:08.1]} 24. Rxc1 {[%clk 0:01:01.9]} 24... Rbc8 {[%clk 0:01:04.1]} 25. Qe4
{[%clk 0:00:53.7]} 25... Rfd8 {[%clk 0:01:02]} 26. Qc4 {[%clk 0:00:45.3]} 26...
Bf8 {[%clk 0:00:26.6]} 27. a4 {[%clk 0:00:34.2]} 27... Qb6 {[%clk 0:00:21.8]}
28. b4 {[%clk 0:00:29]} 28... Qd6 {[%clk 0:00:17.4]} 29. Rd1 {[%clk 0:00:25]}
29... e6 {[%clk 0:00:17.3]} 30. fxe6 {[%clk 0:00:17.6]} 30... fxe6 {[%clk
0:00:16.6]} 31. Qxa6 {[%clk 0:00:15.7]} 31... exd5 {[%clk 0:00:14.9]} 32. Qxd6
{[%clk 0:00:13.9]} 32... Rxd6 {[%clk 0:00:14.4]} 33. a5 {[%clk 0:00:09.6]} 33...
d4 {[%clk 0:00:13.8]} 34. Bf2 {[%clk 0:00:09.1]} 34... Rd5 {[%clk 0:00:11.7]}
35. Ne4 {[%clk 0:00:03.1]} 35... Kf7 {[%clk 0:00:10.9]} 0-1

[Event "Late-Titled-Tuesday-Blitz-June-18-2024"]
[Site "Chess.com"]
[Date "2024.06.18"]
[Round "8"]
[White "th3d4rkness"]
[Black "StoreySniper"]
[Result "1-0"]
[WhiteElo "2238"]
[BlackElo "2400"]
[TimeControl "180+1"]
[EndTime "15:29:09 PDT"]
[Termination "th3d4rkness won on time"]

1. e4 {[%clk 0:03:00.9]} 1... g6 {[%clk 0:02:50.4]} 2. d4 {[%clk 0:02:59.7]}
2... Bg7 {[%clk 0:02:50.4]} 3. Nc3 {[%clk 0:02:59.8]} 3... c5 {[%clk 0:02:50.8]}
4. Nge2 {[%clk 0:02:58.9]} 4... cxd4 {[%clk 0:02:48.8]} 5. Nxd4 {[%clk
0:02:58.9]} 5... Nc6 {[%clk 0:02:49.4]} 6. Be3 {[%clk 0:02:59.2]} 6... Nf6
{[%clk 0:02:47.8]} 7. Bc4 {[%clk 0:02:54.6]} 7... d6 {[%clk 0:02:43]} 8. Bb3
{[%clk 0:02:53.8]} 8... O-O {[%clk 0:02:40.2]} 9. f3 {[%clk 0:02:51.7]} 9... Bd7
{[%clk 0:02:36.2]} 10. Qd2 {[%clk 0:02:51.2]} 10... Qb8 {[%clk 0:02:30.3]} 11.
g4 {[%clk 0:02:48.6]} 11... b5 {[%clk 0:02:13.1]} 12. h4 {[%clk 0:02:45.4]}
12... Ne5 {[%clk 0:01:58.9]} 13. Bh6 {[%clk 0:01:58]} 13... Nc4 {[%clk
0:01:29.7]} 14. Bxc4 {[%clk 0:01:56.4]} 14... bxc4 {[%clk 0:01:30]} 15. Bxg7
{[%clk 0:01:52.4]} 15... Kxg7 {[%clk 0:01:27.7]} 16. h5 {[%clk 0:01:52.6]} 16...
g5 {[%clk 0:00:50]} 17. Qxg5+ {[%clk 0:01:44.2]} 17... Kh8 {[%clk 0:00:50.1]}
18. Qd2 {[%clk 0:01:23.2]} 18... Qxb2 {[%clk 0:00:46.5]} 19. Rb1 {[%clk
0:01:21.9]} 19... Qa3 {[%clk 0:00:46.3]} 20. g5 {[%clk 0:01:16.7]} 20... Ng8
{[%clk 0:00:35.2]} 21. g6 {[%clk 0:01:13.7]} 21... Rab8 {[%clk 0:00:15.7]} 22.
Rxb8 {[%clk 0:01:00.7]} 22... Rxb8 {[%clk 0:00:15.4]} 23. gxf7 {[%clk
0:00:50.6]} 23... Nf6 {[%clk 0:00:15.4]} 24. Rg1 {[%clk 0:00:47.3]} 24... Rf8
{[%clk 0:00:11.3]} 25. e5 {[%clk 0:00:21.5]} 25... dxe5 {[%clk 0:00:10.6]} 26.
Ndb5 {[%clk 0:00:21.1]} 26... Qc5 {[%clk 0:00:09.5]} 27. Qg2 {[%clk 0:00:15.1]}
27... Rxf7 {[%clk 0:00:08.5]} 28. h6 {[%clk 0:00:09.7]} 28... Bg4 {[%clk
0:00:07.4]} 29. fxg4 {[%clk 0:00:09.3]} 29... e4 {[%clk 0:00:06.2]} 30. Kd1
{[%clk 0:00:08.1]} 30... e5 {[%clk 0:00:05.5]} 31. Kc1 {[%clk 0:00:07.7]} 31...
a6 {[%clk 0:00:05]} 32. Rd1 {[%clk 0:00:06.4]} 32... axb5 {[%clk 0:00:03.9]} 33.
Rd8+ {[%clk 0:00:06.2]} 33... Ng8 {[%clk 0:00:04.6]} 34. Nxe4 {[%clk 0:00:05.6]}
34... Qa3+ {[%clk 0:00:01.5]} 35. Kd2 {[%clk 0:00:04.8]} 1-0

[Event "Late-Titled-Tuesday-Blitz-June-18-2024"]
[Site "Chess.com"]
[Date "2024.06.18"]
[Round "8"]
[White "OIAM03"]
[Black "Navyblue1"]
[Result "0-1"]
[WhiteElo "2030"]
[BlackElo "2175"]
[TimeControl "180+1"]
[EndTime "15:29:09 PDT"]
[Termination "Navyblue1 won on time"]

1. e4 {[%clk 0:02:59.3]} 1... c5 {[%clk 0:02:52.3]} 2. c3 {[%clk 0:02:57.8]}
2... Nf6 {[%clk 0:02:51.1]} 3. e5 {[%clk 0:02:57.2]} 3... Nd5 {[%clk 0:02:51.5]}
4. d4 {[%clk 0:02:56.6]} 4... cxd4 {[%clk 0:02:49.5]} 5. Nf3 {[%clk 0:02:56]}
5... d6 {[%clk 0:02:46.4]} 6. cxd4 {[%clk 0:02:55.2]} 6... Nc6 {[%clk
0:02:39.7]} 7. Bc4 {[%clk 0:02:54.1]} 7... Nb6 {[%clk 0:02:39.4]} 8. Bb5 {[%clk
0:02:53.4]} 8... dxe5 {[%clk 0:02:35.8]} 9. Nxe5 {[%clk 0:02:52.6]} 9... Bd7
{[%clk 0:02:35.9]} 10. Nxd7 {[%clk 0:02:51.6]} 10... Qxd7 {[%clk 0:02:35.2]} 11.
Nc3 {[%clk 0:02:51.3]} 11... e6 {[%clk 0:02:34.3]} 12. O-O {[%clk 0:02:48.9]}
12... Be7 {[%clk 0:02:33.7]} 13. Qg4 {[%clk 0:02:47.7]} 13... O-O {[%clk
0:02:22.9]} 14. Bh6 {[%clk 0:02:46]} 14... Bf6 {[%clk 0:02:22.5]} 15. Bxc6
{[%clk 0:02:39.9]} 15... bxc6 {[%clk 0:02:17.3]} 16. Rfd1 {[%clk 0:02:26.3]}
16... Kh8 {[%clk 0:02:11.5]} 17. Ne4 {[%clk 0:02:05.8]} 17... Qe7 {[%clk
0:02:06.4]} 18. Bg5 {[%clk 0:01:50.9]} 18... Bxg5 {[%clk 0:02:03.8]} 19. Nxg5
{[%clk 0:01:50.3]} 19... h6 {[%clk 0:02:00.7]} 20. Nf3 {[%clk 0:01:46.7]} 20...
c5 {[%clk 0:01:44.5]} 21. dxc5 {[%clk 0:01:20.7]} 21... Qxc5 {[%clk 0:01:41.6]}
22. Rac1 {[%clk 0:01:20]} 22... Qb5 {[%clk 0:01:31.8]} 23. b3 {[%clk 0:01:15.2]}
23... Rac8 {[%clk 0:01:19.5]} 24. Nd4 {[%clk 0:01:12]} 24... Qb4 {[%clk
0:00:59.9]} 25. Qf4 {[%clk 0:00:23.7]} 25... Rxc1 {[%clk 0:00:27.9]} 26. Rxc1
{[%clk 0:00:19.2]} 26... Rd8 {[%clk 0:00:18.5]} 27. Nxe6 {[%clk 0:00:12.5]}
27... Qxf4 {[%clk 0:00:11.7]} 28. Nxf4 {[%clk 0:00:12.1]} 28... Rd2 {[%clk
0:00:09.5]} 29. a3 {[%clk 0:00:10.8]} 29... Rb2 {[%clk 0:00:07.8]} 30. b4 {[%clk
0:00:09.9]} 30... Ra2 {[%clk 0:00:07.6]} 31. g3 {[%clk 0:00:07.3]} 31... Rxa3
{[%clk 0:00:07.3]} 0-1

[Event "Late-Titled-Tuesday-Blitz-June-18-2024"]
[Site "Chess.com"]
[Date "2024.06.18"]
[Round "8"]
[White "ChEsper99"]
[Black "ALRS-SPS"]
[Result "0-1"]
[WhiteElo "2260"]
[BlackElo "2428"]
[TimeControl "180+1"]
[EndTime "15:29:14 PDT"]
[Termination "ALRS-SPS won on time"]

1. e4 {[%clk 0:02:56.1]} 1... e5 {[%clk 0:02:58.9]} 2. Nf3 {[%clk 0:02:55.9]}
2... Nc6 {[%clk 0:02:58.1]} 3. Nc3 {[%clk 0:02:56.3]} 3... Nf6 {[%clk
0:02:57.5]} 4. d4 {[%clk 0:02:56.5]} 4... d6 {[%clk 0:02:53.7]} 5. Bc4 {[%clk
0:02:33.3]} 5... exd4 {[%clk 0:02:48.1]} 6. Nxd4 {[%clk 0:02:32.7]} 6... Be7
{[%clk 0:02:48.1]} 7. O-O {[%clk 0:02:31.2]} 7... O-O {[%clk 0:02:47.3]} 8. h3
{[%clk 0:02:16]} 8... Bd7 {[%clk 0:02:27.7]} 9. Re1 {[%clk 0:02:09.7]} 9... Nxd4
{[%clk 0:02:24.1]} 10. Qxd4 {[%clk 0:02:09.4]} 10... c5 {[%clk 0:02:23.7]} 11.
Qd3 {[%clk 0:02:00.3]} 11... Bc6 {[%clk 0:02:20.9]} 12. Bf4 {[%clk 0:01:21.2]}
12... a6 {[%clk 0:02:13.4]} 13. a4 {[%clk 0:01:20.5]} 13... Qc7 {[%clk
0:01:33.7]} 14. Rad1 {[%clk 0:01:16.9]} 14... Rad8 {[%clk 0:01:32.1]} 15. b3
{[%clk 0:01:16.5]} 15... Qb8 {[%clk 0:01:21.6]} 16. Nd5 {[%clk 0:01:16.8]} 16...
Bxd5 {[%clk 0:01:19.4]} 17. Bxd5 {[%clk 0:01:17.7]} 17... Nxd5 {[%clk
0:01:18.7]} 18. Qxd5 {[%clk 0:01:18.4]} 18... Rfe8 {[%clk 0:01:08.9]} 19. c4
{[%clk 0:00:57.1]} 19... b5 {[%clk 0:01:03.2]} 20. axb5 {[%clk 0:00:56.3]} 20...
axb5 {[%clk 0:01:03.5]} 21. Ra1 {[%clk 0:00:50.9]} 21... bxc4 {[%clk 0:01:01.5]}
22. bxc4 {[%clk 0:00:49.8]} 22... Bf6 {[%clk 0:00:55.5]} 23. Rab1 {[%clk
0:00:47.5]} 23... Qc8 {[%clk 0:00:44]} 24. Rb6 {[%clk 0:00:08.9]} 24... Be5
{[%clk 0:00:38.5]} 25. Be3 {[%clk 0:00:02.1]} 25... Qe6 {[%clk 0:00:26.3]} 26.
Reb1 {[%clk 0:00:02.2]} 26... Qf6 {[%clk 0:00:24]} 27. Qd2 {[%clk 0:00:01.3]}
27... h6 {[%clk 0:00:21.1]} 28. Rc1 {[%clk 0:00:01.5]} 28... Rb8 {[%clk
0:00:17.4]} 29. Rcb1 {[%clk 0:00:02.1]} 29... Rbc8 {[%clk 0:00:16.4]} 30. Rb7
{[%clk 0:00:02.3]} 30... Re7 {[%clk 0:00:13.4]} 31. Rxe7 {[%clk 0:00:01.8]}
31... Qxe7 {[%clk 0:00:14.3]} 32. Qc2 {[%clk 0:00:01.8]} 32... Qf6 {[%clk
0:00:12.7]} 33. Qd3 {[%clk 0:00:01.8]} 33... Ra8 {[%clk 0:00:11.4]} 34. g3
{[%clk 0:00:01]} 34... Kh7 {[%clk 0:00:10.8]} 35. Kg2 {[%clk 0:00:01.6]} 35...
Ra2 {[%clk 0:00:09.1]} 36. Rb3 {[%clk 0:00:01.3]} 36... Ra1 {[%clk 0:00:08.8]}
37. Rb2 {[%clk 0:00:01.6]} 37... Bxb2 {[%clk 0:00:08.5]} 0-1

[Event "Late-Titled-Tuesday-Blitz-June-18-2024"]
[Site "Chess.com"]
[Date "2024.06.18"]
[Round "8"]
[White "miraitrunks"]
[Black "Connectedcloud"]
[Result "1-0"]
[WhiteElo "2175"]
[BlackElo "2306"]
[TimeControl "180+1"]
[EndTime "15:29:18 PDT"]
[Termination "miraitrunks won on time"]

1. e3 {[%clk 0:01:49.7]} 1... e5 {[%clk 0:02:58.1]} 2. Nf3 {[%clk 0:01:50.6]}
2... Nc6 {[%clk 0:02:56.6]} 3. b3 {[%clk 0:01:50.6]} 3... Nf6 {[%clk 0:02:55.6]}
4. Bb2 {[%clk 0:01:50.7]} 4... e4 {[%clk 0:02:41.5]} 5. Nd4 {[%clk 0:01:50.4]}
5... Nxd4 {[%clk 0:02:41.5]} 6. Bxd4 {[%clk 0:01:51.2]} 6... d5 {[%clk
0:02:41.7]} 7. Bb5+ {[%clk 0:01:49.6]} 7... c6 {[%clk 0:02:41.4]} 8. Be2 {[%clk
0:01:49.7]} 8... Bd6 {[%clk 0:02:41.5]} 9. d3 {[%clk 0:01:48]} 9... exd3 {[%clk
0:02:40.7]} 10. Bxd3 {[%clk 0:01:46.9]} 10... Qe7 {[%clk 0:02:34.8]} 11. h3
{[%clk 0:01:46.7]} 11... Bd7 {[%clk 0:02:08.8]} 12. Qf3 {[%clk 0:01:44.4]} 12...
Be5 {[%clk 0:02:04.5]} 13. O-O {[%clk 0:01:38.8]} 13... O-O-O {[%clk 0:01:57.2]}
14. Nc3 {[%clk 0:01:32.3]} 14... Rhg8 {[%clk 0:01:49]} 15. Bf5 {[%clk
0:01:26.3]} 15... Bxd4 {[%clk 0:01:43.8]} 16. exd4 {[%clk 0:01:21.3]} 16... Bxf5
{[%clk 0:01:36.9]} 17. Qxf5+ {[%clk 0:01:22.2]} 17... Kb8 {[%clk 0:01:35.9]} 18.
b4 {[%clk 0:01:19.7]} 18... Qxb4 {[%clk 0:01:23.7]} 19. Qd3 {[%clk 0:01:17.8]}
19... Qe7 {[%clk 0:01:21.5]} 20. Rab1 {[%clk 0:01:17.5]} 20... Ka8 {[%clk
0:01:21.1]} 21. Rb3 {[%clk 0:01:17.1]} 21... Rge8 {[%clk 0:01:15.6]} 22. Rfb1
{[%clk 0:01:15.1]} 22... Rd7 {[%clk 0:01:14.4]} 23. Na4 {[%clk 0:01:10.6]} 23...
Rc7 {[%clk 0:01:13.1]} 24. Nc5 {[%clk 0:01:09.5]} 24... b6 {[%clk 0:01:09.8]}
25. Na6 {[%clk 0:00:58.5]} 25... Rb7 {[%clk 0:01:07.9]} 26. Nc5 {[%clk
0:00:55.2]} 26... Rbb8 {[%clk 0:00:51.4]} 27. Qa6 {[%clk 0:00:54.5]} 27... Qc7
{[%clk 0:00:36.7]} 28. Na4 {[%clk 0:00:42.6]} 28... b5 {[%clk 0:00:17.3]} 29.
Nc5 {[%clk 0:00:35.4]} 29... Rb6 {[%clk 0:00:17.7]} 30. Qa5 {[%clk 0:00:34.2]}
30... Ne4 {[%clk 0:00:17.6]} 31. Na6 {[%clk 0:00:32.5]} 31... Qf4 {[%clk
0:00:15.7]} 32. Rf3 {[%clk 0:00:30.8]} 32... Qd2 {[%clk 0:00:14.6]} 33. Nc7+
{[%clk 0:00:22.8]} 33... Kb7 {[%clk 0:00:14.1]} 34. Qa3 {[%clk 0:00:16.6]} 34...
f6 {[%clk 0:00:07.3]} 35. Nxe8 {[%clk 0:00:11.7]} 35... Qxc2 {[%clk 0:00:07.9]}
36. Rfb3 {[%clk 0:00:10.1]} 36... Ra6 {[%clk 0:00:07.2]} 37. Qe7+ {[%clk
0:00:10.5]} 37... Kb6 {[%clk 0:00:07.2]} 38. Nd6 {[%clk 0:00:11.4]} 38... Qxf2+
{[%clk 0:00:06.6]} 39. Kh2 {[%clk 0:00:11]} 39... Qg3+ {[%clk 0:00:07]} 40. Rxg3
{[%clk 0:00:10.5]} 1-0

[Event "Late-Titled-Tuesday-Blitz-June-18-2024"]
[Site "Chess.com"]
[Date "2024.06.18"]
[Round "8"]
[White "AleksandraMilovic"]
[Black "kalxandria"]
[Result "0-1"]
[WhiteElo "2035"]
[BlackElo "2243"]
[TimeControl "180+1"]
[EndTime "15:29:18 PDT"]
[Termination "kalxandria won by resignation"]

1. e4 {[%clk 0:03:00.9]} 1... c5 {[%clk 0:02:59.3]} 2. Nf3 {[%clk 0:03:01.1]}
2... Nc6 {[%clk 0:02:59.1]} 3. d4 {[%clk 0:03:01.1]} 3... cxd4 {[%clk
0:02:58.9]} 4. Nxd4 {[%clk 0:03:02]} 4... g6 {[%clk 0:02:59.3]} 5. Nc3 {[%clk
0:02:59.6]} 5... Bg7 {[%clk 0:02:58.5]} 6. Be3 {[%clk 0:02:59.9]} 6... Nf6
{[%clk 0:02:58.6]} 7. Bc4 {[%clk 0:02:59.6]} 7... O-O {[%clk 0:02:58.4]} 8. f3
{[%clk 0:02:57]} 8... Qb6 {[%clk 0:02:56.2]} 9. Bb3 {[%clk 0:01:57.6]} 9... Nxe4
{[%clk 0:02:49.7]} 10. Nd5 {[%clk 0:01:57.6]} 10... Qa5+ {[%clk 0:02:42.3]} 11.
c3 {[%clk 0:01:56.4]} 11... Nf6 {[%clk 0:02:24]} 12. Nxc6 {[%clk 0:01:50.2]}
12... dxc6 {[%clk 0:02:14]} 13. Nxe7+ {[%clk 0:01:48.5]} 13... Kh8 {[%clk
0:02:14.2]} 14. O-O {[%clk 0:01:42.2]} 14... Qe5 {[%clk 0:02:05.6]} 15. Re1
{[%clk 0:01:29.2]} 15... Qxe7 {[%clk 0:02:03.5]} 16. Bxa7 {[%clk 0:01:11]} 16...
Qc7 {[%clk 0:01:54.4]} 17. Bc5 {[%clk 0:01:10.1]} 17... Rd8 {[%clk 0:01:52.2]}
18. Qe2 {[%clk 0:01:09.4]} 18... Bf5 {[%clk 0:01:38.6]} 19. Be7 {[%clk
0:01:02.5]} 19... Rd7 {[%clk 0:01:14.3]} 20. Bxf7 {[%clk 0:01:01.6]} 20... Nd5
{[%clk 0:01:07.2]} 21. Bxd5 {[%clk 0:00:59.1]} 21... cxd5 {[%clk 0:01:07]} 22.
Bh4 {[%clk 0:00:54.5]} 22... d4 {[%clk 0:01:03.2]} 23. Bg3 {[%clk 0:00:53.7]}
23... Qb6 {[%clk 0:01:01.1]} 24. cxd4 {[%clk 0:00:51.4]} 24... Bxd4+ {[%clk
0:00:58.9]} 25. Kh1 {[%clk 0:00:51.1]} 25... Qxb2 {[%clk 0:00:57.1]} 26. Rad1
{[%clk 0:00:45.6]} 26... Qxe2 {[%clk 0:00:50.6]} 27. Rxe2 {[%clk 0:00:45.9]}
27... Bf6 {[%clk 0:00:42.4]} 28. Rxd7 {[%clk 0:00:34.9]} 28... Bxd7 {[%clk
0:00:41.8]} 29. h3 {[%clk 0:00:32.5]} 29... Kg7 {[%clk 0:00:41.3]} 30. Rd2
{[%clk 0:00:32.2]} 30... Be6 {[%clk 0:00:40.9]} 31. Kh2 {[%clk 0:00:27.8]} 31...
Kf7 {[%clk 0:00:40.7]} 32. Rd6 {[%clk 0:00:27.6]} 32... Rxa2 {[%clk 0:00:38.5]}
33. Rb6 {[%clk 0:00:26.4]} 33... Bc8 {[%clk 0:00:37.5]} 34. Rb4 {[%clk
0:00:20.8]} 34... Rc2 {[%clk 0:00:31.8]} 35. Rb6 {[%clk 0:00:19.6]} 35... Rc6
{[%clk 0:00:31.1]} 36. Rb1 {[%clk 0:00:18.9]} 36... Bd8 {[%clk 0:00:28.4]} 37.
Rd1 {[%clk 0:00:18.1]} 37... Bc7 {[%clk 0:00:28.5]} 38. f4 {[%clk 0:00:17]}
38... Rc2 {[%clk 0:00:24.8]} 39. Kh1 {[%clk 0:00:16.4]} 39... Be6 {[%clk
0:00:24]} 40. Rb1 {[%clk 0:00:14.2]} 40... b6 {[%clk 0:00:23.4]} 41. Rf1 {[%clk
0:00:08.4]} 41... Bd5 {[%clk 0:00:23.2]} 42. Rg1 {[%clk 0:00:07.2]} 42... b5
{[%clk 0:00:22.7]} 43. h4 {[%clk 0:00:07]} 43... b4 {[%clk 0:00:22.5]} 44. Kh2
{[%clk 0:00:07.5]} 44... Rxg2+ {[%clk 0:00:21.9]} 45. Rxg2 {[%clk 0:00:07.5]}
45... Bxg2 {[%clk 0:00:22.8]} 46. Kxg2 {[%clk 0:00:07.4]} 46... b3 {[%clk
0:00:22.4]} 47. f5 {[%clk 0:00:06.7]} 47... Bxg3 {[%clk 0:00:21.8]} 48. fxg6+
{[%clk 0:00:06.5]} 48... hxg6 {[%clk 0:00:22.7]} 49. Kxg3 {[%clk 0:00:06.5]}
49... b2 {[%clk 0:00:22.8]} 0-1